fUST/lending_fUST_20250212
["ID","MTS","AMOUNT","RATE_DAILY","PERIOD"]
[352848146,1739368042831,-152.12082,0.00011232,2]
[352848147,1739368042858,-500.0,0.00011232,2]
[352848148,1739368042890,-500.0,0.00011232,2]
[352848149,1739368042916,-189.943865,0.00011232,2]
[352848150,1739368042943,-500.0,0.00011232,2]
[352848151,1739368042969,-500.0,0.00011232,2]
[352848152,1739368042994,-189.943865,0.00011232,2]
[352848153,1739368043018,-500.0,0.00011232,2]
[352848154,1739368043043,-500.0,0.00011232,2]
[352848155,1739368043066,-151.0,0.00011232,2]
[352848156,1739368043090,-500.0,0.00011232,2]
[352848157,1739368043114,-500.0,0.00011232,2]
[352848158,1739368043246,-360.34154,0.00011232,2]
[352848159,1739368043272,-500.0,0.00011232,2]
[352848160,1739368043298,-923.49,0.00011232,2]
[352848161,1739368043323,-500.0,0.00011232,2]
[352848162,1739368043347,-500.0,0.00011232,2]
[352848163,1739368043373,-500.0,0.00011232,2]
[352848164,1739368043402,-500.0,0.00011232,2]
[352848165,1739368043427,-500.0,0.00011232,2]
[352848166,1739368043452,-500.0,0.00011232,2]
[352848167,1739368043476,-360.34154,0.00011232,2]
[352848168,1739368043500,-192.73297,0.00011232,2]
[352848169,1739368043524,-500.0,0.00011232,2]
[352848170,1739368043547,-360.34154,0.00011232,2]
[352848171,1739368043573,-484.19598,0.00011232,2]
[352848172,1739368043598,-360.34154,0.00011232,2]
[352848173,1739368043623,-192.73297,0.00011232,2]
[352848174,1739368043655,-151.0,0.00011232,2]
[352848175,1739368043680,-409.8,0.00011232,2]
[352848176,1739368043704,-500.0,0.00011232,2]
[352848177,1739368043728,-500.0,0.00011232,2]
[352848178,1739368043753,-484.19598,0.00011232,2]
[352848179,1739368043777,-500.0,0.00011232,2]
[352848180,1739368043800,-151.0,0.00011232,2]
[352848181,1739368043825,-3189.09,0.00011232,2]
[352848182,1739368043849,-500.0,0.00011232,2]
[352848183,1739368043874,-500.0,0.00011232,2]
[352848184,1739368043903,-500.0,0.00011232,2]
[352848185,1739368043930,-1827.83,0.00011232,2]
[352848186,1739368043956,-804.88,0.00011232,2]
[352848187,1739368043981,-500.0,0.00011232,2]
[352848188,1739368044006,-10644.47,0.00011232,2]
[352848189,1739368044037,-500.0,0.00011232,2]
[352848190,1739368044062,-901.3,0.00011232,2]
[352848191,1739368044087,-500.0,0.00011232,2]
[352848192,1739368044111,-283.21467601,0.00011232,2]
[352848193,1739368044134,-500.0,0.00011232,2]
[352848194,1739368044162,-500.0,0.00011232,2]
[352848195,1739368044186,-500.0,0.00011232,2]
[352848196,1739368044210,-500.0,0.00011232,2]
[352848197,1739368044242,-1071.99,0.00011232,2]
[352848198,1739368044269,-500.0,0.00011232,2]
[352848199,1739368044294,-500.0,0.00011232,2]
[352848200,1739368044321,-1744.06,0.00011232,2]
[352848201,1739368044346,-500.0,0.00011232,2]
[352848202,1739368044369,-500.0,0.00011232,2]
[352848203,1739368044397,-151.0,0.00011232,2]
[352848204,1739368044419,-151.0,0.00011232,2]
[352848205,1739368044444,-500.0,0.00011232,2]
[352848206,1739368044467,-500.0,0.00011232,2]
[352848207,1739368044493,-3667.47,0.00011232,2]
[352848208,1739368044518,-643.56,0.00011232,2]
[352848209,1739368044543,-500.0,0.00011232,2]
[352848210,1739368044566,-500.0,0.00011232,2]
[352848211,1739368044589,-500.0,0.00011232,2]
[352848212,1739368044614,-213.49580328,0.00011232,2]
[352848213,1739368044635,-500.0,0.00011232,2]
[352848214,1739368044662,-500.0,0.00011232,2]
[352848215,1739368044684,-500.0,0.00011232,2]
[352848216,1739368044708,-372.64403976,0.00011232,2]
[352848217,1739368044733,-500.0,0.00011232,2]
[352848218,1739368044756,-500.0,0.00011232,2]
[352848219,1739368044780,-500.0,0.00011232,2]
[352848220,1739368044805,-641.99,0.00011232,2]
[352848221,1739368044828,-500.0,0.00011232,2]
[352848222,1739368044852,-151.0,0.00011232,2]
[352848223,1739368044875,-245.047173,0.00011232,2]
[352848224,1739368044905,-305.34318282,0.00011232,2]
[352848225,1739368044929,-500.0,0.00011232,2]
[352848226,1739368044952,-500.0,0.00011232,2]
[352848227,1739368044976,-500.0,0.00011232,2]
[352848228,1739368045001,-500.0,0.00011232,2]
[352848229,1739368045030,-976.680384,0.00011232,2]
[352848230,1739368045056,-1025.73,0.00011232,2]
[352848231,1739368045079,-500.0,0.00011232,2]
[352848232,1739368045103,-976.680384,0.00011232,2]
[352848233,1739368045127,-151.0,0.000113,2]
[352848234,1739368045155,-248.87784428,0.00011336,2]
[352848235,1739368045178,-3587.4691352,0.00011339,5]
[352848236,1739368045203,-152.12082,0.00011339,2]
[352848237,1739368045228,-152.12082,0.00011339,2]
[352848238,1739368045254,-189.943865,0.00011339,2]
[352848239,1739368045279,-189.943865,0.00011339,2]
[352848240,1739368045303,-151.0,0.00011339,2]
[352848241,1739368045330,-192.73297,0.00011339,2]
[352848242,1739368045355,-484.19598,0.00011339,2]
[352848243,1739368045380,-192.73297,0.00011339,2]
[352848244,1739368045407,-151.0,0.00011339,2]
[352848245,1739368045432,-484.19598,0.00011339,2]
[352848246,1739368045455,-254.259648,0.00011339,2]
[352848247,1739368045479,-302.58,0.00011369,2]
[352848248,1739368045503,-500.0,0.00011369,2]
[352848249,1739368045527,-500.0,0.00011369,2]
[352848250,1739368045552,-500.0,0.00011369,2]
[352848251,1739368045576,-500.0,0.00011369,2]
[352848252,1739368045603,-500.0,0.00011369,2]
[352848253,1739368045627,-500.0,0.00011369,2]
[352848254,1739368045654,-500.0,0.00011369,2]
[352848255,1739368045678,-500.0,0.00011369,2]
[352848256,1739368045701,-500.0,0.00011369,2]
[352848257,1739368045724,-500.0,0.00011369,2]
[352848258,1739368045749,-500.0,0.00011369,2]
[352848259,1739368045772,-503.01,0.00011369,2]
[352848260,1739368045796,-500.0,0.00011369,2]
[352848261,1739368045822,-369.56167079,0.00011369,2]
[352848262,1739368045845,-151.0,0.00011369,2]
[352848263,1739368045868,-151.0,0.00011369,2]
[352848264,1739368045896,-151.0,0.00011369,2]
[352848265,1739368045920,-151.0,0.00011369,2]
[352848266,1739368045945,-261.64,0.00011369,2]
[352848267,1739368045971,-173.120272,0.00011369,2]
[352848268,1739368045994,-151.0,0.00011369,2]
[352848269,1739368046017,-151.0,0.00011369,2]
[352848270,1739368046042,-500.0,0.00011369,2]
[352848271,1739368046066,-500.0,0.00011369,2]
[352848272,1739368046090,-500.0,0.00011369,2]
[352848273,1739368046115,-254.958808,0.00011369,2]
[352848274,1739368046141,-500.0,0.00011369,2]
[352848275,1739368046279,-500.0,0.00011369,2]
[352848276,1739368046305,-500.0,0.00011369,2]
[352848277,1739368046334,-500.0,0.00011369,2]
[352848278,1739368046358,-500.0,0.00011369,2]
[352848279,1739368046383,-157.056097,0.00011369,2]
[352848280,1739368046411,-157.056097,0.00011369,2]
[352848281,1739368046435,-500.0,0.00011369,2]
[352848282,1739368046460,-500.0,0.00011369,2]
[352848283,1739368046484,-500.0,0.00011369,2]
[352848284,1739368046507,-500.0,0.00011369,2]
[352848285,1739368046529,-500.0,0.00011369,2]
[352848286,1739368046552,-500.0,0.00011369,2]
[352848287,1739368046575,-500.0,0.00011369,2]
[352848288,1739368046599,-500.0,0.00011369,2]
[352848289,1739368046623,-500.0,0.00011369,2]
[352848290,1739368046651,-500.0,0.00011369,2]
[352848291,1739368046675,-500.0,0.00011369,2]
[352848292,1739368046699,-500.0,0.00011369,2]
[352848293,1739368046728,-500.0,0.00011369,2]
[352848294,1739368046752,-151.0,0.00011369,2]
[352848295,1739368046777,-500.0,0.00011369,2]
[352848296,1739368046802,-500.0,0.00011369,2]
[352848297,1739368046826,-185.954106,0.00011369,2]
[352848298,1739368046853,-185.954106,0.00011369,2]
[352848299,1739368046885,-500.0,0.00011369,2]
[352848300,1739368046913,-500.0,0.00011369,2]
[352848301,1739368046937,-155.25728796,0.00011369,2]
[352848302,1739368046963,-448.41059444,0.00011369,2]
[352848303,1739368046989,-152.12082,0.00011369,2]
[352848304,1739368047015,-500.0,0.00011369,2]
[352848305,1739368047040,-152.12082,0.00011369,2]
[352848306,1739368047066,-500.0,0.00011369,2]
[352848307,1739368047092,-500.0,0.00011369,2]
[352848308,1739368047115,-189.943865,0.00011369,2]
[352848309,1739368047146,-500.0,0.00011369,2]
[352848310,1739368047171,-500.0,0.00011369,2]
[352848311,1739368047195,-189.943865,0.00011369,2]
[352848312,1739368047221,-500.0,0.00011369,2]
[352848313,1739368047247,-500.0,0.00011369,2]
[352848314,1739368047271,-151.0,0.00011369,2]
[352848315,1739368047297,-500.0,0.00011369,2]
[352848316,1739368047322,-500.0,0.00011369,2]
[352848317,1739368047346,-500.0,0.00011369,2]
[352848318,1739368047371,-923.49,0.00011369,2]
[352848319,1739368047398,-500.0,0.00011369,2]
[352848320,1739368047423,-500.0,0.00011369,2]
[352848321,1739368047445,-500.0,0.00011369,2]
[352848322,1739368047469,-192.73297,0.00011369,2]
[352848323,1739368047493,-360.34154,0.00011369,2]
[352848324,1739368047517,-500.0,0.00011369,2]
[352848325,1739368047542,-360.34154,0.00011369,2]
[352848326,1739368047566,-484.19598,0.00011369,2]
[352848327,1739368047589,-192.73297,0.00011369,2]
[352848328,1739368047614,-151.0,0.00011369,2]
[352848329,1739368047643,-500.0,0.00011369,2]
[352848330,1739368047666,-500.0,0.00011369,2]
[352848331,1739368047690,-484.19599,0.00011369,2]
[352848332,1739368047715,-3189.09,0.00011369,2]
[352848333,1739368047740,-500.0,0.00011369,2]
[352848334,1739368047765,-500.0,0.00011369,2]
[352848335,1739368047791,-1827.83,0.00011369,2]
[352848336,1739368047817,-804.88,0.00011369,2]
[352848337,1739368047841,-500.0,0.00011369,2]
[352848338,1739368047867,-10644.47,0.00011369,2]
[352848339,1739368047897,-500.0,0.00011369,2]
[352848340,1739368047924,-901.3,0.00011369,2]
[352848341,1739368047950,-500.0,0.00011369,2]
[352848342,1739368047974,-500.0,0.00011369,2]
[352848343,1739368047999,-500.0,0.00011369,2]
[352848344,1739368048026,-1071.99,0.00011369,2]
[352848345,1739368048051,-500.0,0.00011369,2]
[352848346,1739368048078,-1744.06,0.00011369,2]
[352848347,1739368048104,-500.0,0.00011369,2]
[352848348,1739368048130,-151.0,0.00011369,2]
[352848349,1739368048159,-500.0,0.00011369,2]
[352848350,1739368048185,-500.0,0.00011369,2]
[352848351,1739368048217,-3667.47,0.00011369,2]
[352848352,1739368048246,-643.56,0.00011369,2]
[352848353,1739368048274,-500.0,0.00011369,2]
[352848354,1739368048298,-500.0,0.00011369,2]
[352848355,1739368048326,-500.0,0.00011369,2]
[352848356,1739368048352,-500.0,0.00011369,2]
[352848357,1739368048377,-500.0,0.00011369,2]
[352848358,1739368048406,-641.99,0.00011369,2]
[352848359,1739368048434,-519.95,0.00011369,2]
[352848360,1739368048468,-500.0,0.00011369,2]
[352848361,1739368048495,-1025.73,0.00011369,2]
[352848362,1739368048520,-976.680384,0.00011369,2]
[352848363,1739368048546,-500.0,0.00011369,2]
[352848364,1739368048571,-976.680384,0.00011369,2]
[352848365,1739368048597,-528.69050142,0.00011393,2]
[352848366,1739368048623,-500.0,0.00011393,2]
[352848367,1739368048652,-151.0,0.000114,2]
[352848368,1739368048678,-151.0,0.000114,2]
[352848369,1739368048704,-12592.22100108,0.00011473,2]
[352848370,1739368048730,-151.0,0.000115,2]
[352848371,1739368048755,-2216.29619753,0.00011506,4]
[352848372,1739368048781,-500.0,0.00011506,2]
[352848373,1739368048807,-466.92990718,0.00011506,2]
[352848374,1739368048832,-500.0,0.00011506,2]
[352848375,1739368048859,-500.0,0.00011506,2]
[352848376,1739368048886,-500.0,0.00011506,2]
[352848377,1739368048920,-157.056097,0.00011506,2]
[352848378,1739368048947,-157.056097,0.00011506,2]
[352848379,1739368048975,-500.0,0.00011506,2]
[352848380,1739368049001,-500.0,0.00011506,2]
[352848381,1739368049028,-500.0,0.00011506,2]
[352848382,1739368049053,-373.35901399,0.00011506,2]
[352848383,1739368049078,-500.0,0.00011506,2]
[352848384,1739368049105,-500.0,0.00011506,2]
[352848385,1739368049130,-500.0,0.00011506,2]
[352848386,1739368049262,-500.0,0.00011506,2]
[352848387,1739368049294,-500.0,0.00011506,2]
[352848388,1739368049321,-500.0,0.00011506,2]
[352848389,1739368049347,-151.0,0.00011506,2]
[352848390,1739368049374,-500.0,0.00011506,2]
[352848391,1739368049403,-185.954106,0.00011506,2]
[352848392,1739368049429,-185.954106,0.00011506,2]
[352848393,1739368049456,-500.0,0.00011506,2]
[352848394,1739368049482,-500.0,0.00011506,2]
[352848395,1739368049508,-152.12082,0.00011506,2]
[352848396,1739368049534,-500.0,0.00011506,2]
[352848397,1739368049559,-152.120816,0.00011506,2]
[352848398,1739368049586,-500.0,0.00011506,2]
[352848399,1739368049612,-500.0,0.00011506,2]
[352848400,1739368049642,-189.943865,0.00011506,2]
[352848401,1739368049671,-500.0,0.00011506,2]
[352848402,1739368049696,-189.943863,0.00011506,2]
[352848403,1739368049723,-500.0,0.00011506,2]
[352848404,1739368049749,-500.0,0.00011506,2]
[352848405,1739368049776,-500.0,0.00011506,2]
[352848406,1739368049802,-923.49,0.00011506,2]
[352848407,1739368049828,-500.0,0.00011506,2]
[352848408,1739368049854,-500.0,0.00011506,2]
[352848409,1739368049879,-500.0,0.00011506,2]
[352848410,1739368049908,-360.34154,0.00011506,2]
[352848411,1739368049934,-500.0,0.00011506,2]
[352848412,1739368049961,-360.34154,0.00011506,2]
[352848413,1739368049987,-500.0,0.00011506,2]
[352848414,1739368050014,-3189.09,0.00011506,2]
[352848415,1739368050044,-500.0,0.00011506,2]
[352848416,1739368050071,-219.64712831,0.00011506,2]
[352848417,1739368050099,-1827.83,0.00011506,2]
[352848418,1739368050125,-804.88,0.00011506,2]
[352848419,1739368050154,-500.0,0.00011506,2]
[352848420,1739368050180,-10644.47,0.00011506,2]
[352848421,1739368050206,-500.0,0.00011506,2]
[352848422,1739368050235,-901.3,0.00011506,2]
[352848423,1739368050263,-500.0,0.00011506,2]
[352848424,1739368050291,-500.0,0.00011506,2]
[352848425,1739368050319,-500.0,0.00011506,2]
[352848426,1739368050345,-1071.99,0.00011506,2]
[352848427,1739368050372,-500.0,0.00011506,2]
[352848428,1739368050401,-1744.06,0.00011506,2]
[352848429,1739368050426,-500.0,0.00011506,2]
[352848430,1739368050451,-500.0,0.00011506,2]
[352848431,1739368050476,-500.0,0.00011506,2]
[352848432,1739368050505,-3667.47,0.00011506,2]
[352848433,1739368050532,-643.56,0.00011506,2]
[352848434,1739368050560,-500.0,0.00011506,2]
[352848435,1739368050585,-549.22281283,0.00011506,2]
[352848436,1739368050611,-500.0,0.00011506,2]
[352848437,1739368050636,-500.0,0.00011506,2]
[352848438,1739368050671,-641.99,0.00011506,2]
[352848439,1739368050696,-500.0,0.00011506,2]
[352848440,1739368050722,-1025.73,0.00011506,2]
[352848441,1739368050747,-976.680384,0.00011506,2]
[352848442,1739368050772,-500.0,0.00011506,2]
[352848443,1739368050796,-976.680384,0.00011506,2]
[352848444,1739368050819,-1000.0,0.000116,2]
[352848445,1739368050843,-151.0,0.000116,2]
[352848446,1739368050871,-51892.36027987,0.00011614,2]
[352848448,1739368050899,-151.0,0.00011614,2]
[352848449,1739368050925,-151.0,0.00011614,2]
[352848450,1739368050951,-157.056097,0.00011614,2]
[352848451,1739368050976,-157.056092,0.00011614,2]
[352848452,1739368051003,-218.741034,0.00011614,2]
[352848453,1739368051029,-185.954106,0.00011614,2]
[352848454,1739368051054,-185.954102,0.00011614,2]
[352848455,1739368051079,-360.34154,0.00011614,2]
[352848456,1739368051104,-360.341548,0.00011614,2]
[352848457,1739368051131,-500.0,0.00011643,2]
[352848458,1739368051162,-256.03,0.00011643,2]
[352848459,1739368051188,-500.0,0.00011643,2]
[352848460,1739368051218,-500.0,0.00011643,2]
[352848461,1739368051248,-500.0,0.00011643,2]
[352848462,1739368051273,-384.47335572,0.00011643,2]
[352848463,1739368051300,-500.0,0.00011643,2]
[352848464,1739368051327,-500.0,0.00011643,2]
[352848465,1739368051353,-500.0,0.00011643,2]
[352848466,1739368051377,-500.0,0.00011643,2]
[352848467,1739368051409,-500.0,0.00011643,2]
[352848468,1739368051435,-500.0,0.00011643,2]
[352848469,1739368051462,-500.0,0.00011643,2]
[352848470,1739368051488,-500.0,0.00011643,2]
[352848471,1739368051515,-500.0,0.00011643,2]
[352848472,1739368051543,-923.49,0.00011643,2]
[352848473,1739368051569,-500.0,0.00011643,2]
[352848474,1739368051594,-576.1523479,0.00011643,2]
[352848475,1739368051618,-500.0,0.00011643,2]
[352848476,1739368051648,-500.0,0.00011643,2]
[352848477,1739368051676,-3189.09,0.00011643,2]
[352848478,1739368051701,-500.0,0.00011643,2]
[352848479,1739368051728,-1827.83,0.00011643,2]
[352848480,1739368051753,-804.88,0.00011643,2]
[352848481,1739368051778,-380.42,0.00011643,2]
[352848482,1739368051805,-10644.47,0.00011643,2]
[352848483,1739368051831,-500.0,0.00011643,2]
[352848484,1739368051859,-901.3,0.00011643,2]
[352848485,1739368051884,-500.0,0.00011643,2]
[352848486,1739368051913,-500.0,0.00011643,2]
[352848487,1739368051937,-500.0,0.00011643,2]
[352848488,1739368051964,-1071.99,0.00011643,2]
[352848489,1739368051990,-500.0,0.00011643,2]
[352848490,1739368052015,-1744.06,0.00011643,2]
[352848491,1739368052040,-500.0,0.00011643,2]
[352848492,1739368052064,-500.0,0.00011643,2]
[352848493,1739368052092,-500.0,0.00011643,2]
[352848494,1739368052118,-3667.47,0.00011643,2]
[352848495,1739368052246,-643.56,0.00011643,2]
[352848496,1739368052274,-500.0,0.00011643,2]
[352848497,1739368052299,-500.0,0.00011643,2]
[352848498,1739368052325,-500.0,0.00011643,2]
[352848499,1739368052352,-641.99,0.00011643,2]
[352848500,1739368052379,-500.0,0.00011643,2]
[352848501,1739368052409,-1025.73,0.00011643,2]
[352848502,1739368052433,-976.680384,0.00011643,2]
[352848503,1739368052459,-500.0,0.00011643,2]
[352848504,1739368052484,-976.680384,0.00011643,2]
[352848505,1739368052508,-500.0,0.0001178,2]
[352848506,1739368052532,-151.0,0.0001178,2]
[352848507,1739368052557,-151.0,0.0001178,2]
[352848508,1739368052582,-500.0,0.0001178,2]
[352848509,1739368052609,-500.0,0.0001178,2]
[352848510,1739368052635,-500.0,0.0001178,2]
[352848511,1739368052664,-500.0,0.0001178,2]
[352848512,1739368052690,-500.0,0.0001178,2]
[352848513,1739368052713,-500.0,0.0001178,2]
[352848514,1739368052737,-500.0,0.0001178,2]
[352848515,1739368052762,-500.0,0.0001178,2]
[352848516,1739368052788,-500.0,0.0001178,2]
[352848517,1739368052813,-549.14,0.0001178,2]
[352848518,1739368052839,-500.0,0.0001178,2]
[352848519,1739368052864,-500.0,0.0001178,2]
[352848520,1739368052894,-923.49,0.0001178,2]
[352848521,1739368052919,-500.0,0.0001178,2]
[352848522,1739368052945,-500.0,0.0001178,2]
[352848523,1739368052968,-500.0,0.0001178,2]
[352848524,1739368052994,-3189.09,0.0001178,2]
[352848525,1739368053018,-500.0,0.0001178,2]
[352848526,1739368053047,-1827.83,0.0001178,2]
[352848527,1739368053075,-804.88,0.0001178,2]
[352848528,1739368053102,-10644.47,0.0001178,2]
[352848529,1739368053132,-500.0,0.0001178,2]
[352848530,1739368053165,-901.3,0.0001178,2]
[352848531,1739368053194,-500.0,0.0001178,2]
[352848532,1739368053226,-500.0,0.0001178,2]
[352848533,1739368053256,-500.0,0.0001178,2]
[352848534,1739368053285,-1071.99,0.0001178,2]
[352848535,1739368053315,-500.0,0.0001178,2]
[352848536,1739368053344,-1744.06,0.0001178,2]
[352848537,1739368053371,-500.0,0.0001178,2]
[352848538,1739368053402,-500.0,0.0001178,2]
[352848539,1739368053436,-3667.47,0.0001178,2]
[352848540,1739368053463,-643.56,0.0001178,2]
[352848541,1739368053492,-500.0,0.0001178,2]
[352848542,1739368053519,-500.0,0.0001178,2]
[352848543,1739368053546,-500.0,0.0001178,2]
[352848544,1739368053572,-641.99,0.0001178,2]
[352848545,1739368053598,-500.0,0.0001178,2]
[352848546,1739368053627,-1025.73,0.0001178,2]
[352848547,1739368053659,-976.680384,0.0001178,2]
[352848548,1739368053687,-500.0,0.0001178,2]
[352848549,1739368053713,-976.680384,0.0001178,2]
[352848550,1739368053739,-151.0,0.000118,2]
[352848551,1739368053767,-151.0,0.000119,2]
[352848552,1739368053794,-500.0,0.00011917,2]
[352848553,1739368053819,-151.0,0.00011917,2]
[352848554,1739368053846,-151.0,0.00011917,2]
[352848555,1739368053873,-500.0,0.00011917,2]
[352848556,1739368053907,-500.0,0.00011917,2]
[352848557,1739368053937,-500.0,0.00011917,2]
[352848558,1739368053964,-500.0,0.00011917,2]
[352848559,1739368053991,-500.0,0.00011917,2]
[352848560,1739368054018,-506.74702315,0.00011917,2]
[352848561,1739368054045,-648.81,0.00011917,2]
[352848562,1739368054074,-500.0,0.00011917,2]
[352848563,1739368054104,-500.0,0.00011917,2]
[352848564,1739368054131,-500.0,0.00011917,2]
[352848565,1739368054167,-923.49,0.00011917,2]
[352848566,1739368054196,-271.69272626,0.00011917,2]
[352848567,1739368054224,-500.0,0.00011917,2]
[352848568,1739368054255,-3189.09,0.00011917,2]
[352848569,1739368054285,-591.43,0.00011917,2]
[352848570,1739368054314,-1827.83,0.00011917,2]
[352848571,1739368054343,-804.88,0.00011917,2]
[352848572,1739368054369,-10644.47,0.00011917,2]
[352848573,1739368054402,-500.0,0.00011917,2]
[352848574,1739368054430,-901.3,0.00011917,2]
[352848575,1739368054457,-500.0,0.00011917,2]
[352848576,1739368054482,-500.0,0.00011917,2]
[352848577,1739368054509,-1071.99,0.00011917,2]
[352848578,1739368054535,-500.0,0.00011917,2]
[352848579,1739368054562,-1744.06,0.00011917,2]
[352848580,1739368054589,-193.52,0.00011917,2]
[352848581,1739368054614,-500.0,0.00011917,2]
[352848582,1739368054644,-3667.47,0.00011917,2]
[352848583,1739368054674,-643.56,0.00011917,2]
[352848584,1739368054700,-500.0,0.00011917,2]
[352848585,1739368054728,-500.0,0.00011917,2]
[352848586,1739368054755,-500.0,0.00011917,2]
[352848587,1739368054780,-641.99,0.00011917,2]
[352848588,1739368054806,-432.6202892,0.00011917,2]
[352848589,1739368054831,-1025.73,0.00011917,2]
[352848590,1739368054856,-500.0,0.00011917,2]
[352848591,1739368054882,-500.0,0.00011941,2]
[352848592,1739368054911,-800.0,0.00011984,2]
[352848593,1739368054937,-420.0,0.00012041,2]
[352848594,1739368054964,-179.72,0.00012054,2]
[352848595,1739368054990,-500.0,0.00012054,2]
[352848596,1739368055018,-500.0,0.00012054,2]
[352848597,1739368055044,-500.0,0.00012054,2]
[352848598,1739368055179,-500.0,0.00012054,2]
[352848599,1739368055206,-500.0,0.00012054,2]
[352848600,1739368055235,-500.0,0.00012054,2]
[352848601,1739368055265,-219.45,0.00012054,2]
[352848602,1739368055291,-923.49,0.00012054,2]
[352848603,1739368055317,-500.0,0.00012054,2]
[352848604,1739368055344,-3189.09,0.00012054,2]
[352848605,1739368055373,-1827.83,0.00012054,2]
[352848606,1739368055402,-804.88,0.00012054,2]
[352848607,1739368055429,-10644.47,0.00012054,2]
[352848608,1739368055455,-500.0,0.00012054,2]
[352848609,1739368055480,-901.3,0.00012054,2]
[352848610,1739368055504,-500.0,0.00012054,2]
[352848611,1739368055531,-226.23,0.00012054,2]
[352848612,1739368055558,-1071.99,0.00012054,2]
[352848613,1739368055584,-269.55765703,0.00012054,2]
[352848614,1739368055609,-1744.06,0.00012054,2]
[352848615,1739368055634,-500.0,0.00012054,2]
[352848616,1739368055669,-3667.47,0.00012054,2]
[352848617,1739368055696,-643.56,0.00012054,2]
[352848618,1739368055723,-500.0,0.00012054,2]
[352848619,1739368055749,-500.0,0.00012054,2]
[352848620,1739368055776,-500.0,0.00012054,2]
[352848621,1739368055804,-641.99,0.00012054,2]
[352848622,1739368055829,-1025.73,0.00012054,2]
[352848623,1739368055856,-500.0,0.00012054,2]
[352848624,1739368055881,-500.0,0.00012191,2]
[352848625,1739368055914,-500.0,0.00012191,2]
[352848626,1739368055940,-500.0,0.00012191,2]
[352848627,1739368055966,-500.0,0.00012191,2]
[352848628,1739368055995,-500.0,0.00012191,2]
[352848629,1739368056022,-500.0,0.00012191,2]
[352848630,1739368056050,-923.49,0.00012191,2]
[352848631,1739368056076,-500.0,0.00012191,2]
[352848632,1739368056103,-3189.09,0.00012191,2]
[352848633,1739368056130,-1827.83,0.00012191,2]
[352848634,1739368056162,-804.88,0.00012191,2]
[352848635,1739368056192,-10644.47,0.00012191,2]
[352848636,1739368056219,-500.0,0.00012191,2]
[352848637,1739368056249,-901.3,0.00012191,2]
[352848638,1739368056277,-500.0,0.00012191,2]
[352848639,1739368056305,-1071.99,0.00012191,2]
[352848640,1739368056335,-1744.06,0.00012191,2]
[352848641,1739368056362,-500.0,0.00012191,2]
[352848642,1739368056390,-3667.47,0.00012191,2]
[352848643,1739368056423,-643.56,0.00012191,2]
[352848644,1739368056449,-500.0,0.00012191,2]
[352848645,1739368056475,-500.0,0.00012191,2]
[352848646,1739368056503,-500.0,0.00012191,2]